[Event "360 One Wealth GP-4 2024"]
[Site "Mumbai"]
[Date "2024.03.12"]
[Round "2.4"]
[White "Arnav Mahesh Koli"]
[Black "Vihaan Ravi Rao"]
[Result "1-0"]
[ECO "B84"]
[WhiteElo "1857"]
[BlackElo "1532"]
[Annotator "NA RC"]
[PlyCount "109"]
[EventDate "2024.03.10"]
[EventCountry "IND"]
[SourceTitle "playchess.com"]
[Source "ChessBase"]
[SourceQuality "1"]
[TimeControl "5400+30"]

1. e4 {[%emt 0:00:08]} c5 {[%emt 0:00:12]} 2. Nf3 {[%emt 0:00:02]} d6 {[%emt 0:00:14]} 3. d4 {[%emt 0:00:02]} cxd4 {[%emt 0:00:15]} 4. Nxd4 {[%emt 0:00:07]} Nf6 {[%emt 0:00:14]} 5. Nc3 {[%emt 0:00:02]} a6 {[%emt 0:00:12]} 6. Bc4 {[%emt 0:00:32]} e6 {[%emt 0:00:17]} 7. O-O {[%emt 0:03:11]} b5 {[%emt 0:01:31]} 8. Bd3 {[%emt 0:00:10]} Bb7 {[%emt 0:02:42]} 9. f3 {[%emt 0:01:02]} Be7 {[%emt 0:03:23]} 10. Be3 {[%emt 0:00:39]} O-O {[%emt 0:02:23]} 11. Nce2 {[%emt 0:00:40] B84: Sicilian Scheveningen: 6 Be2 a6, lines without early Be3.} Nbd7 {[%emt 0:01:27]} 12. g4 {[%emt 0:01:05]} ({White should play} 12. a4 $15) 12... Nc5 {[%emt 0:03:44]} 13. Ng3 {[%emt 0:01:55]} Nxd3 {[%emt 0:02:52]} 14. cxd3 {[%emt 0:00:08]} Rc8 {[%emt 0:05:00]} 15. f4 {[%emt 0:01:06]} Qd7 {[%emt 0:06:45]} (15... b4 $11) 16. g5 {[%emt 0:01:35]} Ne8 {[%emt 0:01:04]} 17. f5 {[%emt 0:00:29]} d5 {[%emt 0:07:37]} (17... e5 $14 18. f6 gxf6) 18. e5 {[%emt 0:03:09]} Bc5 {[%emt 0:08:33]} 19. f6 {[%emt 0:02:36]} (19. Qg4 $16) 19... Bxd4 {[%emt 0:03:41]} 20. Bxd4 {[%emt 0:00:08]} Qc6 {[%emt 0:04:45]} 21. Rc1 {[%emt 0:00:56]} ({Vorzuziehen ist} 21. Rf2 $18) 21... Qxc1 {[%emt 0:03:16]} 22. Qxc1 {[%emt 0:00:05]} Rxc1 {[%emt 0:00:10]} 23. Rxc1 {[%emt 0:00:02]} Kh8 {[%emt 0:00:21] [#]} 24. h4 $1 {[%emt 0:02:06]} h6 $2 {[%emt 0:03:52]} (24... Rg8 25. fxg7+ Kxg7) 25. Kf2 $2 {[%emt 0:03:15]} (25. Bc5 hxg5 26. Bxf8 gxf6 27. hxg5 fxe5 28. Bb4) 25... Rg8 {[%emt 0:02:41]} 26. Be3 {[%emt 0:03:06]} gxf6 {[%emt 0:06:27]} 27. exf6 {[%emt 0:00:19]} (27. gxf6 $142 Rg4 28. Bxh6) 27... hxg5 {[%emt 0:01:31]} 28. hxg5 {[%emt 0:02:01]} Rg6 {[%emt 0:00:46]} (28... d4 $16 {keeps fighting.} 29. Bf4 (29. Bxd4 Rxg5 30. Ne4 Bxe4 $11) 29... Kh7) 29. Bf4 {[%emt 0:00:52]} e5 {[%emt 0:04:00]} 30. Bxe5 {[%emt 0:00:13]} Rxg5 {[%emt 0:00:25]} 31. Rh1+ {[%emt 0:00:19]} Kg8 {[%emt 0:00:16]} 32. d4 {[%emt 0:00:04]} Bc8 {[%emt 0:02:26] [#]} 33. Nh5 $1 {[%emt 0:04:48]} Rg6 {[%emt 0:03:44]} 34. Nf4 {[%emt 0:01:12]} Be6 {[%emt 0:04:21]} 35. Nxg6 {[%emt 0:00:15]} fxg6 {[%emt 0:00:15]} 36. Rh8+ {[%emt 0:00:03]} Kf7 {[%emt 0:01:31]} 37. Rh7+ {[%emt 0:00:06]} Kf8 {[%emt 0:01:32]} 38. Ra7 {[%emt 0:01:30]} Bf7 {[%emt 0:01:57]} 39. Rxa6 {[%emt 0:00:22]} g5 {[%emt 0:00:18]} 40. Rb6 {[%emt 0:00:08]} g4 {[%emt 0:00:11]} 41. Rxb5 {[%emt 0:00:06]} Be6 $18 {[%emt 0:00:44]} 42. Rb6 {[%emt 0:00:09]} Bf7 {[%emt 0:00:07]} 43. a4 {[%emt 0:00:03]} Bh5 {[%emt 0:00:14]} 44. a5 {[%emt 0:00:06]} g3+ {[%emt 0:00:11]} 45. Kxg3 {[%emt 0:00:06]} Bf7 {[%emt 0:00:08]} 46. a6 {[%emt 0:00:05]} Bh5 {[%emt 0:00:04]} 47. a7 {[%emt 0:00:04]} Bf7 {[%emt 0:00:05]} 48. a8=Q {[%emt 0:00:05]} Bh5 {[%emt 0:00:11]} 49. Qd8 {[%emt 0:00:08]} Bf7 {[%emt 0:00:10]} 50. Qe7+ {[%emt 0:00:15]} Kg8 {[%emt 0:00:07]} 51. Rb8 {[%emt 0:00:04]} Kh8 {[%emt 0:00:26]} 52. Rxe8+ {[%emt 0:00:04]} Kh7 {[%emt 0:00:21]} 53. Qxf7+ {[%emt 0:00:21]} Kh6 {[%emt 0:00:05]} 54. Rh8+ {[%emt 0:00:07]} Kg5 {[%emt 0:00:06]} 55. Qh5# {[%emt 0:00:05]} 1-0

[Event "360 One Wealth GP-4 2024"]
[Site "Mumbai"]
[Date "2024.03.12"]
[Round "2.5"]
[White "Boricha Yohan"]
[Black "Tvesha Ashish Jain"]
[Result "1-0"]
[ECO "C54"]
[WhiteElo "1840"]
[BlackElo "1522"]
[Annotator "NA RC"]
[PlyCount "87"]
[EventDate "2024.03.10"]
[EventCountry "IND"]
[SourceTitle "playchess.com"]
[Source "ChessBase"]
[SourceQuality "1"]
[TimeControl "5400+30"]

1. e4 {[%emt 0:00:02]} e5 {[%emt 0:01:54]} 2. Nf3 {[%emt 0:00:09]} Nc6 {[%emt 0:00:43]} 3. Bc4 {[%emt 0:00:08]} Bc5 {[%emt 0:00:42]} 4. c3 {[%emt 0:00:11]} Nf6 {[%emt 0:00:31]} 5. d3 {[%emt 0:00:05]} d6 {[%emt 0:00:46]} 6. a4 {[%emt 0:00:21] C54: Giuoco Piano: 4 c3 Nf6, main lines with 5 d4 and 5 d3.} a5 {[%emt 0:00:31]} 7. Nbd2 {[%emt 0:00:32]} Ne7 {[%emt 0:00:31]} 8. h3 {[%emt 0:00:42]} h6 {[%emt 0:01:42]} 9. Nf1 {[%emt 0:01:33]} Ng6 {[%emt 0:02:14]} 10. Ng3 {[%emt 0:00:11]} O-O {[%emt 0:00:43]} 11. O-O {[%emt 0:00:18]} Be6 {[%emt 0:00:46]} 12. Bxe6 {[%emt 0:13:01]} fxe6 {[%emt 0:02:40]} 13. d4 {[%emt 0:00:34]} exd4 {[%emt 0:01:12]} 14. cxd4 {[%emt 0:00:19]} Bb6 {[%emt 0:00:30]} 15. Qd3 {[%emt 0:05:27]} Qe8 {[%emt 0:03:27]} 16. Be3 {[%emt 0:08:28]} Rd8 {[%emt 0:03:28]} 17. Rfe1 {[%emt 0:01:20]} e5 {[%emt 0:05:21]} (17... d5 $11) 18. dxe5 {[%emt 0:03:08]} dxe5 {[%emt 0:04:55]} 19. Qb3+ {[%emt 0:00:26]} Kh8 {[%emt 0:05:21]} 20. Bxb6 {[%emt 0:00:26]} cxb6 {[%emt 0:02:06]} 21. Qxb6 {[%emt 0:00:08]} Nd7 {[%emt 0:01:25]} 22. Qxa5 {[%emt 0:01:27]} Qe6 {[%emt 0:00:40]} 23. Rad1 {[%emt 0:03:41]} b6 {[%emt 0:01:17]} 24. Qd5 {[%emt 0:00:27]} Qe8 {[%emt 0:03:46]} 25. Qb5 {[%emt 0:07:43]} Qe6 {[%emt 0:00:39]} 26. Nf5 {[%emt 0:00:28]} Nf6 {[%emt 0:04:15]} 27. Nd2 {[%emt 0:06:24]} Nf4 {[%emt 0:01:17]} 28. f3 {[%emt 0:03:11]} N6h5 {[%emt 0:01:53]} 29. Kh2 {[%emt 0:05:38]} Qg6 {[%emt 0:01:05]} 30. g4 {[%emt 0:01:29]} Nf6 {[%emt 0:05:24]} 31. Nc4 {[%emt 0:01:16]} h5 $2 {[%emt 0:01:57]} (31... Qf7 32. Rxd8 (32. Nxe5 Qc7 $18) (32. Qxe5 Rxd1 33. Rxd1 Qxc4 $17) 32... Rxd8 33. Qxb6 (33. Nxe5 Qc7 $18) 33... Qd7) 32. Nxe5 {[%emt 0:00:43]} Qh7 {[%emt 0:01:14]} 33. g5 {[%emt 0:05:00]} Ng4+ 34. fxg4 {[%emt 0:00:12]} hxg4 {[%emt 0:09:23]} 35. h4 {[%emt 0:00:25]} Rc8 {[%emt 0:00:38]} 36. Kg3 {[%emt 0:03:03]} (36. Nxg4 $2 {is the wrong capture.} Rxf5 37. Kg3 (37. exf5 $2 {leads to mate.} Qxh4+ 38. Kg1 Qg3+ 39. Kh1 Qg2#) 37... Nh5+ 38. Kg2 Rxb5 39. axb5 $19 Qg6 $19) 36... Rc5 {[%emt 0:06:23]} 37. Nf7+ {[%emt 0:01:07]} Kg8 {[%emt 0:01:21]} 38. Qb3 {[%emt 0:00:13]} g6 {[%emt 0:02:08]} 39. Ne5+ {[%emt 0:02:19]} Kh8 {[%emt 0:02:07]} 40. Rd7 $18 {[%emt 0:01:19]} Nh5+ {[%emt 0:01:19]} 41. Kh2 {[%emt 0:00:30]} Rxe5 {[%emt 0:00:49]} 42. Rxh7+ {[%emt 0:00:24]} Kxh7 {[%emt 0:00:15]} 43. Qxb6 {[%emt 0:00:22]} Rf7 {[%emt 0:01:33]} 44. Qd6 {[%emt 0:01:33]} 1-0

[Event "360 One Wealth GP-4 2024"]
[Site "Mumbai"]
[Date "2024.03.12"]
[Round "2.6"]
[White "Pasbola Samvid"]
[Black "Mishra Sanjeev"]
[Result "0-1"]
[ECO "C92"]
[WhiteElo "1538"]
[BlackElo "1833"]
[Annotator "NA RC"]
[PlyCount "50"]
[EventDate "2024.03.10"]
[EventCountry "IND"]
[SourceTitle "playchess.com"]
[Source "ChessBase"]
[SourceQuality "1"]
[TimeControl "5400+30"]

1. e4 {[%emt 0:00:22]} e5 {[%emt 0:00:34]} 2. Nf3 {[%emt 0:00:21]} Nc6 {[%emt 0:00:02]} 3. Bb5 {[%emt 0:00:01]} a6 {[%emt 0:00:21]} 4. Ba4 {[%emt 0:00:23]} Nf6 {[%emt 0:01:39]} 5. O-O {[%emt 0:00:22]} Be7 {[%emt 0:00:15]} 6. d3 {[%emt 0:00:06]} b5 {[%emt 0:00:09]} 7. Bb3 {[%emt 0:00:19]} O-O {[%emt 0:00:09]} 8. c3 {[%emt 0:00:21]} d6 {[%emt 0:00:33]} 9. h3 {[%emt 0:00:24]} Bb7 {[%emt 0:00:12]} 10. Re1 {[%emt 0:00:13]} Na5 {[%emt 0:00:11]} 11. Bc2 {[%emt 0:00:11]} c5 {[%emt 0:00:02]} 12. Nbd2 {[%emt 0:00:42]} Re8 {[%emt 0:00:11]} 13. Nf1 {[%emt 0:00:28]} Bf8 {[%emt 0:00:14]} 14. Ng3 {[%emt 0:00:38]} d5 {[%emt 0:01:00] C92: Closed Ruy Lopez: 9...Be6, Karpov and Flohr-Zaitsev Variations.} 15. Bg5 {[%emt 0:04:28]} h6 {[%emt 0:00:39]} 16. Bxf6 {[%emt 0:04:37]} Qxf6 {[%emt 0:00:02]} 17. Qe2 {[%emt 0:01:45]} dxe4 {[%emt 0:07:31]} 18. Nxe4 {[%emt 0:00:47]} Qe7 {[%emt 0:00:24]} 19. d4 {[%emt 0:04:56]} cxd4 {[%emt 0:00:25]} 20. cxd4 {[%emt 0:00:24]} exd4 {[%emt 0:01:50]} 21. Nxd4 {[%emt 0:01:58]} Qe5 {[%emt 0:06:51]} (21... g6 $17 22. Rad1 Bg7) 22. Qd3 {[%emt 0:13:03] [#]} g6 $1 {[%emt 0:12:48]} 23. Nc3 $19 {[%emt 0:14:04]} (23. Ng3 $17 Qf6 (23... Qxe1+ 24. Rxe1 Rxe1+ 25. Kh2 $15) 24. Ne4) 23... Qxe1+ {[%emt 0:00:56]} 24. Rxe1 {[%emt 0:00:15]} Rxe1+ {[%emt 0:00:01]} 25. Kh2 {[%emt 0:00:01]} Bd6+ {[%emt 0:00:01]} 0-1

[Event "360 One Wealth GP-4 2024"]
[Site "Mumbai"]
[Date "2024.03.12"]
[Round "2.7"]
[White "Ram Vishal Parab"]
[Black "Parv H Hakani"]
[Result "1-0"]
[ECO "B12"]
[WhiteElo "1807"]
[BlackElo "1518"]
[Annotator "NA RC"]
[PlyCount "99"]
[EventDate "2024.03.10"]
[EventCountry "IND"]
[SourceTitle "playchess.com"]
[Source "ChessBase"]
[SourceQuality "1"]
[TimeControl "5400+30"]

1. e4 {[%emt 0:00:04]} c6 {[%emt 0:00:17]} 2. d4 {[%emt 0:00:06]} d5 {[%emt 0:00:07]} 3. e5 {[%emt 0:00:04]} c5 {[%emt 0:00:04]} 4. Nf3 {[%emt 0:00:04]} cxd4 {[%emt 0:00:11]} 5. Nxd4 {[%emt 0:00:08]} Nc6 {[%emt 0:00:04]} 6. Nxc6 {[%emt 0:00:06] B12: Caro-Kann: Advance Variation.} bxc6 {[%emt 0:00:06]} 7. Bd3 {[%emt 0:00:04]} e6 {[%emt 0:03:49]} 8. O-O {[%emt 0:00:09]} Ne7 {[%emt 0:01:08]} 9. Nd2 {[%emt 0:00:57]} Ng6 {[%emt 0:00:13]} 10. Nf3 {[%emt 0:00:12]} Bc5 {[%emt 0:01:28]} 11. Qe2 {[%emt 0:01:57]} O-O {[%emt 0:01:44]} 12. Ng5 {[%emt 0:08:50]} Be7 {[%emt 0:05:14]} 13. h4 {[%emt 0:08:53]} Bxg5 {[%emt 0:06:07]} 14. Bxg5 {[%emt 0:00:31]} Qc7 {[%emt 0:00:06]} 15. Rae1 {[%emt 0:04:27]} h6 {[%emt 0:00:42]} 16. Bd2 {[%emt 0:09:40]} (16. Bc1 $1 $14) 16... Nxh4 {[%emt 0:02:14]} 17. f4 {[%emt 0:01:09]} c5 {[%emt 0:05:39]} 18. Qh5 {[%emt 0:03:57]} Nf5 {[%emt 0:01:16]} 19. Kh2 {[%emt 0:01:03]} c4 {[%emt 0:01:38]} 20. Bxf5 {[%emt 0:05:51]} exf5 {[%emt 0:00:39]} 21. Re3 {[%emt 0:05:59]} Qb6 {[%emt 0:05:32]} 22. Rh3 {[%emt 0:00:53]} Qg6 {[%emt 0:01:21]} 23. Qh4 {[%emt 0:00:10]} f6 {[%emt 0:05:11]} 24. Rg3 {[%emt 0:00:31]} Qf7 {[%emt 0:01:31]} 25. Bb4 {[%emt 0:00:30]} Kh7 {[%emt 0:01:05]} 26. Bxf8 {[%emt 0:00:20]} Qxf8 {[%emt 0:00:10]} 27. exf6 {[%emt 0:00:08]} gxf6 {[%emt 0:01:03]} 28. Qh5 {[%emt 0:00:13]} Bd7 {[%emt 0:00:25]} 29. Qg6+ {[%emt 0:00:08]} Kh8 {[%emt 0:00:07]} 30. Rh3 {[%emt 0:00:02]} Qg7 {[%emt 0:00:23]} 31. Rxh6+ {[%emt 0:00:15]} Kg8 {[%emt 0:00:05]} 32. Qh5 {[%emt 0:00:18]} Be8 {[%emt 0:00:08]} 33. Qh4 {[%emt 0:00:04]} Bg6 {[%emt 0:00:08]} 34. Rf3 {[%emt 0:00:09]} Kf7 {[%emt 0:01:21]} 35. Rg3 {[%emt 0:00:11]} Rb8 {[%emt 0:00:50]} 36. Rgxg6 {[%emt 0:00:26]} Qxg6 {[%emt 0:00:01]} 37. Rxg6 {[%emt 0:00:08]} Kxg6 {[%emt 0:00:13]} 38. Qg3+ {[%emt 0:00:05]} Kf7 {[%emt 0:00:06]} 39. Qa3 {[%emt 0:00:15]} Rb7 {[%emt 0:00:15]} 40. Qd6 {[%emt 0:00:04]} Rxb2 {[%emt 0:00:09]} 41. Qxd5+ {[%emt 0:00:07]} Kg7 {[%emt 0:00:01]} 42. Qxc4 {[%emt 0:00:08]} Rb7 {[%emt 0:00:18]} 43. Qd5 {[%emt 0:00:08]} Rb2 {[%emt 0:00:06]} 44. Qxf5 {[%emt 0:00:07]} Rxa2 {[%emt 0:00:06]} 45. Qg4+ {[%emt 0:00:25]} Kh6 {[%emt 0:00:15]} 46. f5 {[%emt 0:00:06]} Kh7 {[%emt 0:00:09]} 47. Qg6+ {[%emt 0:00:07]} Kh8 {[%emt 0:00:02]} 48. Qxf6+ {[%emt 0:00:03]} Kg8 {[%emt 0:00:08]} 49. Qe6+ {[%emt 0:00:04]} Kf8 {[%emt 0:00:06]} 50. f6 {[%emt 0:00:05]} 1-0

[Event "360 One Wealth GP-4 2024"]
[Site "Mumbai"]
[Date "2024.03.12"]
[Round "2.8"]
[White "Gogri Vedaant"]
[Black "Guru Prakash"]
[Result "0-1"]
[ECO "A15"]
[WhiteElo "1531"]
[BlackElo "1794"]
[Annotator "NA RC"]
[PlyCount "84"]
[EventDate "2024.03.10"]
[EventCountry "IND"]
[SourceTitle "playchess.com"]
[Source "ChessBase"]
[SourceQuality "1"]
[TimeControl "5400+30"]

1. c4 {[%emt 0:02:06]} Nf6 {[%emt 0:00:12]} 2. b3 {[%emt 0:00:33]} g6 {[%emt 0:01:06]} 3. g3 {[%emt 0:00:39]} Bg7 {[%emt 0:00:10]} 4. Bb2 {[%emt 0:00:18]} O-O {[%emt 0:01:21]} 5. Bg2 {[%emt 0:00:23]} e6 {[%emt 0:00:47]} 6. Nf3 {[%emt 0:01:35]} d5 {[%emt 0:00:06]} 7. cxd5 {[%emt 0:01:13]} exd5 {[%emt 0:00:08]} 8. O-O {[%emt 0:00:58]} c5 {[%emt 0:01:47]} 9. d4 {[%emt 0:01:49]} cxd4 {[%emt 0:05:38]} 10. Nxd4 {[%emt 0:01:01]} Nc6 {[%emt 0:00:14]} 11. Na3 {[%emt 0:01:12]} Re8 {[%emt 0:03:16]} 12. Rc1 {[%emt 0:01:11]} Bg4 {[%emt 0:02:44]} 13. Re1 {[%emt 0:02:10]} Qd7 {[%emt 0:06:46]} 14. Nxc6 {[%emt 0:01:28]} bxc6 {[%emt 0:01:50]} 15. f3 {[%emt 0:01:41]} Bf5 {[%emt 0:05:41]} 16. Bd4 {[%emt 0:01:22]} a5 {[%emt 0:10:15]} 17. Qd2 {[%emt 0:01:51]} Qd6 {[%emt 0:10:00]} 18. Bc5 {[%emt 0:02:51]} Qb8 {[%emt 0:00:13]} 19. Qc3 {[%emt 0:01:48]} Ne4 {[%emt 0:03:38]} 20. Qc2 {[%emt 0:02:13]} Nxc5 {[%emt 0:02:43]} 21. Qxc5 {[%emt 0:01:04]} Bf8 {[%emt 0:02:35]} 22. Qxc6 {[%emt 0:00:40]} Bxa3 {[%emt 0:00:12]} 23. Rcd1 {[%emt 0:00:52]} Bb4 {[%emt 0:01:35]} 24. Rf1 {[%emt 0:00:37]} Qa7+ {[%emt 0:02:09]} 25. Kh1 {[%emt 0:00:36]} Qd7 {[%emt 0:00:06]} 26. Qxd7 {[%emt 0:00:56]} Bxd7 {[%emt 0:00:02]} 27. e4 {[%emt 0:02:09]} Bb5 {[%emt 0:00:24]} 28. Rf2 {[%emt 0:02:31]} d4 {[%emt 0:00:12]} 29. Bf1 {[%emt 0:02:06]} Bxf1 {[%emt 0:01:55]} 30. Rdxf1 {[%emt 0:00:36]} a4 {[%emt 0:00:06]} 31. Rd1 {[%emt 0:00:41]} axb3 {[%emt 0:00:13]} 32. axb3 {[%emt 0:00:10]} Ra3 {[%emt 0:00:07]} 33. Rd3 {[%emt 0:02:36]} Bc3 {[%emt 0:00:26]} 34. Rf1 {[%emt 0:01:24]} Rxb3 {[%emt 0:00:06]} 35. Rfd1 {[%emt 0:03:17]} Rb2 {[%emt 0:00:13]} 36. Kg1 {[%emt 0:01:37]} Ra8 {[%emt 0:00:04]} 37. h4 {[%emt 0:00:46]} Raa2 {[%emt 0:00:08]} 38. f4 {[%emt 0:01:09]} Bd2 {[%emt 0:00:43]} 39. e5 {[%emt 0:01:27]} Be3+ {[%emt 0:00:12]} 40. Kf1 {[%emt 0:00:32]} Rf2+ {[%emt 0:00:01]} 41. Kg1 {[%emt 0:00:09]} Rh2+ {[%emt 0:00:02]} 42. Kf1 {[%emt 0:00:11]} Rh1# {[%emt 0:00:02]} 0-1

[Event "360 One Wealth GP-4 2024"]
[Site "Mumbai"]
[Date "2024.03.12"]
[Round "2.9"]
[White "Kapadi Yash"]
[Black "Prabhakar Aariv"]
[Result "1-0"]
[ECO "A48"]
[WhiteElo "1779"]
[BlackElo "1509"]
[Annotator "NA RC"]
[PlyCount "73"]
[EventDate "2024.03.10"]
[EventCountry "IND"]
[SourceTitle "playchess.com"]
[Source "ChessBase"]
[SourceQuality "1"]
[TimeControl "5400+30"]

1. d4 {[%emt 0:14:52]} Nf6 {[%emt 0:00:16]} 2. Nf3 {[%emt 0:00:08]} g6 {[%emt 0:00:12]} 3. Bg5 {[%emt 0:00:43]} Bg7 {[%emt 0:00:24]} 4. Nbd2 {[%emt 0:00:12]} d6 {[%emt 0:00:15]} 5. e4 {[%emt 0:00:26]} Nc6 {[%emt 0:01:26]} 6. d5 {[%emt 0:00:27]} Nb8 {[%emt 0:03:06]} 7. h3 {[%emt 0:00:39]} O-O {[%emt 0:01:03]} 8. Bd3 {[%emt 0:03:11]} e6 {[%emt 0:01:06]} 9. c4 {[%emt 0:03:51]} exd5 {[%emt 0:03:22]} 10. cxd5 {[%emt 0:00:08]} Nbd7 {[%emt 0:00:50]} 11. O-O {[%emt 0:01:14]} Nc5 {[%emt 0:01:22]} 12. Bc2 {[%emt 0:00:20]} a5 {[%emt 0:02:23]} 13. Nb3 {[%emt 0:05:50]} Nxb3 {[%emt 0:02:57]} 14. axb3 {[%emt 0:00:16]} Re8 {[%emt 0:05:28]} 15. Qd2 {[%emt 0:04:40]} b6 {[%emt 0:04:57]} 16. Rfe1 {[%emt 0:02:11]} Bb7 {[%emt 0:01:16]} 17. Qf4 {[%emt 0:08:48]} h6 {[%emt 0:26:26]} 18. Bxh6 {[%emt 0:01:11]} Nh5 {[%emt 0:00:59]} 19. Qc1 {[%emt 0:14:46]} Qf6 {[%emt 0:04:05]} 20. Rb1 {[%emt 0:01:26]} Bxh6 {[%emt 0:05:00]} 21. Qxh6 {[%emt 0:00:06]} Bc8 {[%emt 0:01:47]} 22. Qg5 {[%emt 0:02:07]} Qxg5 {[%emt 0:02:05]} 23. Nxg5 {[%emt 0:00:03]} Kg7 {[%emt 0:00:32]} 24. Rbc1 {[%emt 0:01:27]} Ba6 {[%emt 0:05:58]} 25. Bd1 {[%emt 0:01:26]} Re7 {[%emt 0:00:33]} 26. Bxh5 {[%emt 0:01:55]} gxh5 {[%emt 0:00:11]} 27. Re3 {[%emt 0:00:56]} Kf6 {[%emt 0:02:39]} 28. h4 {[%emt 0:00:41]} Bb5 {[%emt 0:00:24]} 29. Rf3+ {[%emt 0:06:16]} Kg6 {[%emt 0:01:13]} 30. Rg3 {[%emt 0:01:21]} Kf6 {[%emt 0:01:05]} 31. f4 {[%emt 0:04:14]} Rh8 {[%emt 0:05:04]} 32. Re1 {[%emt 0:02:38]} Be8 {[%emt 0:04:13]} 33. Kf2 {[%emt 0:06:31]} Bd7 {[%emt 0:03:21]} 34. e5+ {[%emt 0:00:26]} dxe5 {[%emt 0:05:06]} 35. Ne4+ {[%emt 0:00:25]} Kf5 {[%emt 0:00:36]} 36. Rg5+ {[%emt 0:00:10]} Kxf4 {[%emt 0:00:20]} 37. g3# {[%emt 0:00:07]} 1-0

[Event "360 One Wealth GP-4 2024"]
[Site "Mumbai"]
[Date "2024.03.12"]
[Round "2.10"]
[White "Palaash Suyog Mapara"]
[Black "Shah Mihir"]
[Result "0-1"]
[ECO "B13"]
[WhiteElo "1521"]
[BlackElo "1764"]
[Annotator "NA RC"]
[PlyCount "80"]
[EventDate "2024.03.10"]
[EventCountry "IND"]
[SourceTitle "playchess.com"]
[Source "ChessBase"]
[SourceQuality "1"]
[TimeControl "5400+30"]

1. e4 {[%emt 0:00:03]} c6 {[%emt 0:09:09]} 2. d4 {[%emt 0:00:07]} d5 {[%emt 0:00:19]} 3. exd5 {[%emt 0:00:04]} cxd5 {[%emt 0:00:07]} 4. Bd3 {[%emt 0:00:05]} Nc6 {[%emt 0:00:09]} 5. c3 {[%emt 0:00:04]} Qc7 {[%emt 0:01:08]} 6. h3 {[%emt 0:02:28]} e6 {[%emt 0:00:30]} 7. Nf3 {[%emt 0:00:52]} Bd6 {[%emt 0:00:16]} 8. Be3 {[%emt 0:02:09]} Nge7 {[%emt 0:02:54]} 9. O-O {[%emt 0:05:37]} h6 {[%emt 0:03:39]} 10. a3 {[%emt 0:05:12]} O-O {[%emt 0:03:17]} 11. Re1 {[%emt 0:09:19]} Bd7 {[%emt 0:09:59]} 12. b4 {[%emt 0:07:58]} Rae8 {[%emt 0:05:15]} 13. Qe2 {[%emt 0:24:26]} f6 {[%emt 0:12:02]} 14. Ra2 {[%emt 0:12:28]} e5 {[%emt 0:02:36]} 15. dxe5 {[%emt 0:11:34]} fxe5 {[%emt 0:02:04]} 16. Bc2 {[%emt 0:05:52]} Nf5 {[%emt 0:07:00]} 17. Bxf5 {[%emt 0:03:15]} Bxf5 {[%emt 0:00:43]} 18. Qd1 {[%emt 0:04:25]} Be6 {[%emt 0:01:58]} 19. Rc2 {[%emt 0:02:07]} b6 {[%emt 0:01:32]} 20. Nbd2 {[%emt 0:00:31]} Qf7 {[%emt 0:01:38]} 21. Rc1 {[%emt 0:01:21]} Kh8 {[%emt 0:02:53]} 22. Rf1 {[%emt 0:00:43]} Bb8 {[%emt 0:03:59]} 23. Qe2 {[%emt 0:00:41]} Qc7 {[%emt 0:00:44]} 24. Nh2 {[%emt 0:00:37]} d4 {[%emt 0:02:07]} 25. cxd4 {[%emt 0:00:18]} exd4 {[%emt 0:00:18]} 26. f4 {[%emt 0:00:22]} dxe3 {[%emt 0:00:25]} 27. Ndf3 {[%emt 0:00:02]} Qb7 {[%emt 0:05:27]} 28. Rfe1 {[%emt 0:01:09]} Bxf4 {[%emt 0:00:27]} 29. Rc3 {[%emt 0:00:31]} Ne5 {[%emt 0:01:13]} 30. Kh1 {[%emt 0:00:29]} Nxf3 {[%emt 0:01:16]} 31. Nxf3 {[%emt 0:00:30]} Bd5 {[%emt 0:02:49]} 32. Rg1 {[%emt 0:00:32]} Qe7 {[%emt 0:01:04]} 33. Re1 {[%emt 0:00:32]} Qf6 {[%emt 0:00:21]} 34. Rc2 {[%emt 0:00:27]} Qg6 {[%emt 0:00:55]} 35. Nh4 {[%emt 0:00:17]} Qg3 {[%emt 0:00:11]} 36. Nf3 {[%emt 0:00:17]} Bxf3 {[%emt 0:00:04]} 37. gxf3 {[%emt 0:00:18]} Qxh3+ {[%emt 0:00:14]} 38. Kg1 {[%emt 0:00:05]} Rf5 {[%emt 0:00:31]} 39. Qg2 {[%emt 0:00:18]} Rg5 {[%emt 0:00:08]} 40. Qxg5 {[%emt 0:00:15]} Bxg5 {[%emt 0:00:06]} 0-1

[Event "360 One Wealth GP-4 2024"]
[Site "Mumbai"]
[Date "2024.03.12"]
[Round "2.11"]
[White "Isaiah Chris Nazareth"]
[Black "Sathiesh Kumaar L"]
[Result "1/2-1/2"]
[ECO "B13"]
[WhiteElo "1698"]
[BlackElo "1497"]
[Annotator "NA RC"]
[PlyCount "107"]
[EventDate "2024.03.10"]
[EventCountry "IND"]
[SourceTitle "playchess.com"]
[Source "ChessBase"]
[SourceQuality "1"]
[TimeControl "5400+30"]

1. e4 {[%emt 0:01:51]} c6 {[%emt 0:00:33]} 2. c4 {[%emt 0:00:42]} d5 {[%emt 0:03:18]} 3. cxd5 {[%emt 0:00:36]} cxd5 {[%emt 0:00:06]} 4. exd5 {[%emt 0:00:07]} Nf6 {[%emt 0:00:06]} 5. Nc3 {[%emt 0:01:52]} Nxd5 {[%emt 0:02:38]} 6. Nf3 {[%emt 0:00:27]} Nc6 {[%emt 0:01:28]} 7. d4 {[%emt 0:06:39]} Bg4 {[%emt 0:10:35]} 8. Bc4 {[%emt 0:12:13]} e6 {[%emt 0:03:43]} 9. Nxd5 {[%emt 0:16:33]} exd5 {[%emt 0:01:06]} 10. Be2 {[%emt 0:00:11]} Bxf3 {[%emt 0:28:56]} 11. Bxf3 {[%emt 0:00:52]} Bb4+ {[%emt 0:00:08]} 12. Kf1 {[%emt 0:05:59]} O-O {[%emt 0:02:50]} 13. g3 {[%emt 0:00:26]} Re8 {[%emt 0:04:55]} 14. Kg2 {[%emt 0:03:27]} Qf6 {[%emt 0:01:16]} 15. Be3 {[%emt 0:00:50]} Rad8 {[%emt 0:00:54]} 16. Qd3 {[%emt 0:05:12]} Ba5 {[%emt 0:07:18]} 17. a3 {[%emt 0:00:31]} Bb6 {[%emt 0:00:33]} 18. Rad1 {[%emt 0:06:47]} Ne7 {[%emt 0:02:04]} 19. Rhe1 {[%emt 0:12:25]} Rc8 {[%emt 0:03:03]} 20. h4 {[%emt 0:05:00]} h6 {[%emt 0:10:12]} 21. Qb3 {[%emt 0:06:37]} Red8 {[%emt 0:06:33]} 22. Bf4 {[%emt 0:01:48]} Ng6 {[%emt 0:05:14]} 23. Be5 {[%emt 0:01:07]} Nxe5 {[%emt 0:02:04]} 24. dxe5 {[%emt 0:00:06]} Qf5 {[%emt 0:00:09]} 25. Rxd5 {[%emt 0:01:21]} Rxd5 {[%emt 0:00:13]} 26. Qxd5 {[%emt 0:00:01]} Rc2 {[%emt 0:00:11]} 27. Rf1 {[%emt 0:02:17]} Rxb2 {[%emt 0:00:10]} 28. Qxb7 {[%emt 0:00:41]} Qxe5 {[%emt 0:00:15]} 29. Qc8+ {[%emt 0:00:50]} Kh7 {[%emt 0:00:14]} 30. Qc4 {[%emt 0:00:23]} f5 {[%emt 0:02:05]} 31. Bd5 {[%emt 0:02:56]} Bc7 {[%emt 0:00:54]} 32. Kg1 {[%emt 0:01:29]} Rd2 {[%emt 0:00:38]} 33. Bf3 {[%emt 0:01:08]} Bb6 {[%emt 0:01:00]} 34. Kg2 {[%emt 0:00:54]} Qb2 {[%emt 0:00:44]} 35. Qf4 {[%emt 0:01:42]} Rxf2+ {[%emt 0:00:27]} 36. Rxf2 {[%emt 0:00:16]} Qxf2+ {[%emt 0:00:07]} 37. Kh3 {[%emt 0:00:07]} Qf1+ {[%emt 0:00:13]} 38. Bg2 {[%emt 0:00:07]} Qxf4 {[%emt 0:00:31]} 39. gxf4 {[%emt 0:00:02]} Bf2 {[%emt 0:00:17]} 40. h5 {[%emt 0:00:13]} g6 {[%emt 0:00:28]} 41. hxg6+ {[%emt 0:01:10]} Kxg6 {[%emt 0:00:07]} 42. Bf3 {[%emt 0:00:09]} h5 {[%emt 0:00:25]} 43. a4 {[%emt 0:00:00]} h4 {[%emt 0:00:31]} 44. Be2 {[%emt 0:00:15]} Kf6 {[%emt 0:00:59]} 45. Bc4 {[%emt 0:00:34]} Bg3 {[%emt 0:00:25]} 46. Bd5 {[%emt 0:00:10]} Bxf4 {[%emt 0:00:12]} 47. Kxh4 {[%emt 0:00:05]} Ke5 {[%emt 0:00:19]} 48. Bc6 {[%emt 0:00:35]} Be3 {[%emt 0:01:12]} 49. Kg3 {[%emt 0:00:08]} f4+ {[%emt 0:00:10]} 50. Kf3 {[%emt 0:00:05]} Kd6 {[%emt 0:01:10]} 51. Be8 {[%emt 0:00:08]} a6 {[%emt 0:00:25]} 52. Bg6 {[%emt 0:00:16]} Kc5 {[%emt 0:00:25]} 53. Bd3 {[%emt 0:00:16]} a5 {[%emt 0:00:27]} 54. Bb5 {[%emt 0:00:07]} 1/2-1/2